bitfinex-derivatives/quotes_ETHF0:USTF0_20251118
["timestamp","ask_amount","ask_price","bid_price","bid_amount"]
[1763497398240,1.27837906,3149.1,3149.0,0.00476047]
[1763497398448,0.51484,3148.3,3148.1,3.2078]
[1763497398647,3.21008767,3149.4,3148.2,0.2454]
[1763497398648,3.2078,3148.5,3148.2,0.2454]
[1763497398847,3.2078,3148.5,3148.3,0.51483]
[1763497399145,3.2078,3148.5,3148.4,0.76022]
[1763497399947,3.2078,3149.0,3148.9,0.2454]
[1763497400250,3.2078,3149.0,3148.9,0.76013]
[1763497401854,3.72252,3149.0,3148.9,0.2454]
[1763497402059,3.72252,3149.0,3148.5,3.3555]
[1763497402357,3.72252,3149.0,3148.9,0.2409]
[1763497402558,3.2078,3149.0,3148.9,0.75563]
[1763497402862,0.51469,3149.2,3149.1,0.7556]
[1763497404060,3.72475767,3149.4,3149.3,0.75557]
[1763497404455,0.00228767,3149.4,3149.3,3.96337]
[1763497404663,0.00476047,3149.7,3149.6,0.75552]
[1763497404955,3.2078,3150.8,3150.5,0.65726]
[1763497405161,0.51446,3150.6,3150.5,0.1428]
[1763497405756,0.51832714,3150.6,3150.5,0.66014625]
[1763497406158,0.51832714,3150.6,3150.5,0.14567625]
[1763497407656,0.00386714,3150.6,3150.5,0.66014625]
[1763497407854,0.00386714,3150.6,3150.5,0.90104625]
[1763497408965,3.2078,3150.8,3150.7,0.73734]
[1763497409861,3.2078,3151.6,3150.8,0.73732]
[1763497410060,3.72441234,3151.6,3151.5,0.3582]
[1763497410267,0.56106,3151.2,3151.1,0.51437]
[1763497410557,0.56107,3151.1,3151.0,0.1353]
[1763497410957,3.76887,3151.1,3151.0,0.1353]
[1763497411161,0.56116,3150.6,3150.5,0.36857625]
[1763497412459,3.76896,3150.6,3150.5,0.00287625]
[1763497413266,3.76896,3150.6,3150.5,0.13817625]
[1763497414670,3.76896,3150.6,3150.5,0.00287625]
[1763497416975,0.5612,3150.3,3150.2,0.00476047]
[1763497418078,0.5612,3150.3,3150.2,0.00859106]
[1763497421378,3.76616,3150.6,3150.5,0.3582]
[1763497421769,3.76616,3150.6,3150.5,0.1353]
[1763497422371,0.5584,3150.3,3150.2,0.00859106]
[1763497423673,0.5145,3150.3,3150.2,0.74601106]
[1763497424981,0.51449,3150.4,3150.3,0.73738]
[1763497425676,0.51449,3150.4,3150.3,0.2229]
[1763497425879,0.51449,3150.4,3150.3,0.7374]
[1763497429484,0.55839,3150.4,3150.3,0.7374]
[1763497429683,0.51449,3150.4,3150.3,0.7374]
[1763497430286,0.55839,3150.4,3150.3,0.7374]
[1763497430487,0.5584,3150.3,3150.2,3.21639106]
[1763497430882,0.5584,3150.3,3150.2,0.00859106]
[1763497431684,0.5584,3150.3,3150.2,0.52311106]
[1763497434890,0.5584,3150.3,3150.2,0.00859106]
[1763497435387,1.32956327,3150.3,3150.2,0.00859106]
[1763497439394,1.32923002,3150.3,3150.2,0.00859106]
[1763497440595,0.77083002,3150.3,3150.2,0.74601106]
[1763497440894,3.76606,3150.6,3150.5,0.3738]
[1763497441095,4.53700694,3150.6,3150.5,0.135]
[1763497441297,0.5583,3150.3,3150.2,0.00859106]
[1763497441593,1.32924694,3150.3,3150.2,0.00859106]
[1763497441795,1.32924694,3150.3,3150.2,0.76191106]
[1763497442096,1.32924694,3150.3,3150.2,0.00859106]
[1763497442787,0.51468,3149.3,3149.2,0.75348]
[1763497442995,3.2078,3149.7,3149.6,0.2388]
[1763497443194,3.97860612,3149.7,3149.6,0.2388]
[1763497443593,4.02601277,3149.7,3149.6,0.2426575]
[1763497443794,4.54061277,3149.7,3149.6,0.2426575]
[1763497444607,4.54061277,3149.7,3149.6,0.0038575]
[1763497444796,4.54061277,3149.7,3149.6,0.2426575]
[1763497444996,4.54061277,3149.7,3149.6,0.0038575]
[1763497448799,4.54061277,3149.7,3149.6,0.2426575]
[1763497449199,4.49681277,3149.7,3149.6,0.2426575]
[1763497449500,3.72600665,3149.7,3149.6,0.2426575]
[1763497449701,3.76980665,3149.7,3149.6,0.0038575]
[1763497453303,0.56200665,3149.7,3149.6,0.0038575]
[1763497454607,0.55858,3148.6,3148.5,0.135]
[1763497455003,0.51478,3148.6,3148.5,0.8886]
[1763497455206,0.55858,3148.6,3148.5,0.3738]
[1763497455402,0.55858,3148.6,3148.5,0.135]
[1763497455611,0.55858,3148.6,3148.5,0.13831632]
[1763497455813,0.55858,3148.6,3148.5,0.37711632]
[1763497456615,0.51478,3148.6,3148.5,0.89191632]
[1763497457706,3.2078,3148.8,3148.7,0.75357]
[1763497457707,3.72255,3148.8,3148.7,0.75357]
[1763497458705,3.72255,3148.8,3148.7,0.2388]
[1763497459109,3.72255,3148.8,3148.5,0.13831632]
[1763497459110,0.0438,3148.7,3148.5,0.13831632]
[1763497459405,0.55858,3148.6,3148.5,0.89191632]
[1763497459810,0.51478,3148.6,3148.5,0.89191632]
[1763497460713,0.55858,3148.6,3148.5,0.13831632]
[1763497461213,0.55858,3148.6,3148.5,0.37711632]
[1763497463114,0.55858,3148.6,3148.5,0.00331632]
[1763497463411,5.214004,3148.6,3148.5,1.632e-05]
[1763497463711,5.214004,3148.6,3147.5,0.135]
[1763497463712,0.51486,3148.1,3147.7,0.51493]
[1763497463917,3.76526,3148.1,3147.6,0.51494]
[1763497464216,3.76526,3148.1,3147.5,0.135]
[1763497464419,0.55755,3147.6,3147.5,0.3643]
[1763497464617,0.55755,3147.6,3147.5,0.36733515]
[1763497465719,3.76535,3147.6,3147.5,0.88229515]
[1763497466220,3.76535,3147.6,3147.5,0.36733515]
[1763497466617,3.72275,3147.6,3147.5,0.36733515]
[1763497467622,3.76535,3147.6,3147.5,0.36733515]
[1763497468015,3.76535,3147.6,3147.5,0.13803515]
[1763497468219,3.76535,3147.6,3147.5,0.65299515]
[1763497469217,3.76535,3147.6,3147.5,0.13803515]
[1763497469624,3.76535,3147.6,3147.5,0.65299515]
[1763497470123,3.76535,3147.6,3147.5,0.13803515]
[1763497470324,3.72275,3147.6,3147.5,0.36673515]
[1763497470516,3.76365,3147.6,3147.5,0.13803515]
[1763497471818,3.76365,3147.6,3147.5,0.00303515]
[1763497472026,0.55601,3146.6,3146.5,0.1436]
[1763497472223,3.2487,3146.6,3145.9,0.51522]
[1763497472425,3.2078,3146.2,3146.1,0.74389]
[1763497473131,3.21041211,3146.2,3146.1,0.74628994]
[1763497473422,0.00261211,3146.2,3146.1,0.74628994]
[1763497473627,0.00261211,3146.2,3146.1,3.95408994]
[1763497474014,3.2078,3146.6,3146.5,0.87903]
[1763497474216,3.2078,3147.0,3146.9,0.74376]
[1763497474521,3.76634,3147.0,3146.9,0.74376]
[1763497474826,3.2513,3147.0,3146.9,0.51506]
[1763497475126,3.2551441,3147.0,3146.9,0.74376]
[1763497475625,3.7701841,3147.0,3146.5,3.343]
[1763497475820,3.7266841,3147.0,3146.9,0.2287]
[1763497476415,0.51507,3146.9,3146.5,3.343]
[1763497476822,0.51507,3146.9,3146.8,0.2287]
[1763497477026,0.55857,3146.9,3146.8,0.2287]
[1763497477327,0.5586,3146.7,3146.6,0.2287]
[1763497478314,0.5586,3146.7,3146.6,0.51511]
[1763497479130,0.55861,3146.6,3146.5,0.87903]
[1763497479518,0.55861,3146.6,3146.5,0.65033]
[1763497479725,0.55861,3146.6,3146.5,0.1352]
[1763497480625,0.5151,3146.7,3146.6,0.74379]
[1763497481129,0.51508,3146.8,3146.7,0.74378]
[1763497481532,3.2116441,3147.0,3146.9,0.74376]
[1763497482828,3.7266841,3147.0,3146.9,0.74376]
[1763497483332,3.2116441,3147.0,3146.9,0.74376]
[1763497484030,0.0038441,3147.0,3146.9,3.95156]
[1763497484236,0.51493,3147.7,3147.6,0.51493]
[1763497484429,0.51493,3147.7,3147.6,0.74363]
[1763497484625,0.56316047,3147.9,3147.8,0.74361]
[1763497484830,0.51966047,3147.9,3147.8,0.74361]
[1763497485126,0.52230243,3147.9,3147.8,0.74361]
[1763497486131,0.00740243,3147.9,3147.8,0.74361]
[1763497486530,0.52230243,3147.9,3147.8,0.2287]
[1763497486733,0.51494,3147.7,3147.6,0.2287]
[1763497486934,0.51494,3147.7,3147.6,0.74365]
[1763497489139,0.55844,3147.7,3147.6,0.74365]
[1763497490237,0.51495,3147.6,3147.5,0.1352]
[1763497490441,0.55845,3147.6,3147.5,0.1352]
[1763497492944,0.55848,3147.4,3147.3,0.00476047]
[1763497493443,0.55848,3147.4,3147.3,0.74846047]
[1763497494546,0.55848,3147.4,3147.3,0.00476047]
[1763497496448,0.0435,3147.4,3147.3,0.74846047]
[1763497496848,0.51498,3147.4,3147.3,0.74846047]
[1763497497051,0.55845,3147.6,3147.5,0.87885]
[1763497497348,0.51495,3147.6,3147.5,0.87885]
[1763497497743,0.55825,3147.6,3147.5,0.65015]
[1763497498250,0.55825,3147.6,3147.5,0.1352]
[1763497498852,0.55825,3147.6,3147.5,0.87536]
[1763497500252,0.51495,3147.6,3147.5,0.87536]
[1763497500653,0.55825,3147.6,3147.5,0.87536]
[1763497501449,0.55825,3147.6,3147.5,0.1352]
[1763497501650,0.55825,3147.6,3147.5,0.65016]
[1763497502450,0.55825,3147.6,3147.5,0.1352]
[1763497503250,0.55828,3147.4,3147.3,0.00476047]
[1763497503448,0.69359,3146.7,3146.6,0.2252]
[1763497503648,0.69361,3146.6,3146.5,0.1352]
[1763497504449,3.2078,3146.9,3146.8,0.74028]
[1763497504647,3.90136,3146.9,3146.8,0.2252]
[1763497504954,0.69359,3146.7,3146.6,0.74031]
[1763497505154,0.1785,3146.7,3146.6,0.74031]
[1763497505452,0.69359,3146.7,3146.6,0.74031]
[1763497505950,3.2078,3146.9,3146.5,0.1352]
[1763497505951,0.69361,3146.6,3146.5,0.1352]
[1763497506250,0.69361,3146.6,3146.5,0.3604]
[1763497507154,0.69361,3146.6,3146.5,0.1352]
[1763497507354,0.69361,3146.6,3146.5,0.3604]
[1763497508951,0.69361,3146.6,3146.5,0.87553]
[1763497509858,0.69361,3146.6,3146.5,0.1352]
[1763497510354,0.69366,3146.3,3146.2,0.00476047]
[1763497511062,0.51516,3146.3,3146.2,0.22996047]
[1763497511363,3.889,3146.8,3146.2,0.22996047]
[1763497511364,0.51513,3146.5,3146.4,0.74033]
[1763497511560,0.69363,3146.5,3146.4,0.74033]
[1763497511753,0.69363,3146.5,3146.4,0.2252]
[1763497511954,0.69364,3146.4,3146.3,0.51515]
[1763497512160,0.69366,3146.3,3146.2,0.22996047]
[1763497512863,3.2078,3146.4,3146.3,0.2252]
[1763497513059,3.2078,3146.4,3146.3,0.74036]
[1763497515064,4.58259,3146.8,3146.7,0.51509]
[1763497515260,3.2078,3146.9,3146.8,0.74028]
[1763497515563,3.2078,3146.9,3146.5,0.1369]
[1763497515564,0.51495,3147.6,3147.5,0.1369]
[1763497515763,0.69345,3147.6,3147.5,0.3621]
[1763497515966,0.69345,3147.6,3147.5,0.1369]
[1763497516266,0.69345,3147.6,3147.0,0.1369]
[1763497516267,0.69353,3147.1,3147.0,0.1369]
[1763497516466,0.6936,3146.7,3146.6,0.74031]
[1763497516662,0.1785,3146.6,3146.5,0.87721]
[1763497516862,0.69359,3146.8,3146.7,0.74029]
[1763497518159,0.1785,3146.8,3146.7,0.74029]
[1763497518366,3.3863,3147.1,3147.0,0.87714]
[1763497518564,3.90134,3147.1,3147.0,0.3621]
[1763497518954,0.51511,3146.6,3146.5,0.1369]
[1763497519157,0.69361,3146.6,3146.5,0.3621]
[1763497519457,0.5151,3146.7,3146.6,0.2252]
[1763497520266,0.51507,3146.9,3146.8,0.51507]
[1763497520567,3.90134,3147.1,3147.0,0.87714]
[1763497521071,3.72284,3147.1,3147.0,0.87714]
[1763497522372,3.72283,3147.1,3147.0,0.87714]
[1763497522869,3.89903,3147.1,3147.0,0.87714]
[1763497524167,3.72283,3147.1,3147.0,0.87714]
[1763497525071,3.89903,3147.1,3147.0,0.87714]
[1763497525278,1.14637682,3147.9,3147.0,0.87714]
[1763497525279,0.1762,3147.7,3147.6,0.2265]
[1763497525570,0.69113,3147.7,3147.6,0.2265]
[1763497526158,0.69115,3147.6,3147.5,0.1371]
[1763497526363,0.6912,3147.4,3147.3,0.51499]
[1763497526573,3.899,3147.4,3147.3,0.51499]
[1763497526869,0.69116,3147.6,3147.5,0.87854]
[1763497527068,0.51496,3147.6,3147.5,0.87854]
[1763497527465,0.69116,3147.6,3147.5,0.87854]
[1763497527771,0.1762,3147.6,3147.5,0.87854]
[1763497527971,3.2078,3147.8,3147.7,0.73703]
[1763497528564,3.72271,3147.8,3147.7,0.73703]
[1763497529767,3.90121,3147.8,3147.7,0.2221]
[1763497530068,0.69345,3147.6,3147.5,0.1371]
[1763497532173,0.1785,3146.9,3146.8,0.73718]
[1763497532373,3.90136,3146.9,3146.8,0.73718]
[1763497532576,3.90136,3146.9,3146.8,0.2221]
[1763497533270,3.90136,3146.9,3146.8,0.51508]
[1763497534771,0.69361,3146.7,3146.6,0.73721]
[1763497535367,0.69361,3146.7,3146.6,0.51511]
[1763497535569,0.69361,3146.6,3146.5,0.1369]
[1763497535973,0.69366,3146.3,3146.2,0.22686047]
[1763497536168,0.69374,3145.8,3145.7,3.2078]
[1763497536372,0.69376,3145.7,3145.6,0.73736]
[1763497536573,0.69376,3145.7,3145.6,0.2221]
[1763497536877,0.69377,3145.6,3145.5,0.65829]
[1763497537078,0.51526,3145.7,3145.6,0.73737]
[1763497537276,0.51817623,3145.7,3145.6,0.73960959]
[1763497537570,0.69667623,3145.7,3145.6,0.73960959]
[1763497537872,0.69667623,3145.7,3145.6,0.00223959]
[1763497538267,0.69667623,3145.7,3145.6,0.51750959]
[1763497538865,0.18141623,3145.7,3145.6,0.51750959]
[1763497539074,0.00291623,3145.7,3145.6,0.73960959]
[1763497541173,0.18141623,3145.7,3145.6,0.73960959]
[1763497541765,0.00291623,3145.7,3145.6,0.73960959]
[1763497541975,0.69667623,3145.7,3145.6,0.73960959]
[1763497542271,0.18141623,3145.7,3145.6,0.73960959]
[1763497542479,0.00291623,3145.7,3145.6,0.73960959]
[1763497543475,0.69667623,3145.7,3145.6,0.73960959]
[1763497543676,0.69667623,3145.7,3145.6,0.51750959]
[1763497543873,0.69667623,3145.7,3145.6,0.00223959]
[1763497544474,0.1785,3144.9,3144.8,0.5154]
[1763497544680,3.72319,3144.9,3144.8,0.7375]
[1763497544876,3.72319,3144.9,3144.8,0.2221]
[1763497545072,0.69394,3144.6,3144.5,0.143]
[1763497545582,0.69394,3144.6,3144.5,0.14675869]
[1763497546371,0.69394,3144.6,3144.5,0.66220869]
[1763497546572,0.69394,3144.6,3144.5,0.00375869]
[1763497547781,0.1785,3144.6,3144.5,0.51920869]
[1763497548080,0.69394,3144.6,3144.5,0.66220869]
[1763497548282,3.2078,3144.9,3144.8,0.7375]
[1763497548676,12.09829796,3144.9,3143.5,0.65861]
[1763497548876,0.51559,3143.7,3143.5,0.143]
[1763497549080,0.51568,3143.1,3142.5,0.143]
[1763497549281,3.72348,3143.1,3142.6,0.51576]
[1763497549479,3.72348,3143.1,3142.8,0.51573]
[1763497549684,3.7271031,3143.1,3143.0,0.1470135]
[1763497551881,3.2114231,3143.1,3143.0,0.3691135]
[1763497554089,3.2114231,3143.1,3143.0,0.1470135]
[1763497555591,3.7271031,3143.1,3143.0,0.1470135]
[1763497555987,3.7271031,3143.1,3143.0,0.6627135]
[1763497556283,3.2114231,3143.1,3143.0,0.8848135]
[1763497556692,3.72338,3143.7,3143.6,0.2221]
[1763497557486,0.5156,3143.6,3143.5,0.65862]
[1763497557791,0.51800079,3143.6,3143.5,0.143]
[1763497558789,0.00240079,3143.6,3143.5,0.143]
[1763497559092,4.40700079,3143.6,3143.5,0.3724]
[1763497559299,0.51800079,3143.6,3143.5,0.3724]
[1763497560777,0.51800079,3143.6,3143.5,0.88802]
[1763497561394,0.51800079,3143.6,3143.5,0.3724]
[1763497561587,0.51800079,3143.6,3143.0,0.1470135]
[1763497561588,0.51568,3143.1,3143.0,0.1470135]
[1763497561779,0.51577,3142.6,3141.5,3.3497]
[1763497561985,3.72357,3142.6,3141.9,0.51588]
[1763497562385,0.51585,3142.1,3141.9,0.51588]
[1763497562587,3.72365,3142.1,3142.0,0.65886]
[1763497562895,3.72365,3142.1,3142.0,0.14629654]
[1763497563884,3.72365,3142.1,3142.0,0.00329654]
[1763497564291,3.72365,3142.1,3142.0,0.14519654]
[1763497564489,3.72365,3142.1,3142.0,0.00329654]
[1763497565196,3.72365,3142.1,3142.0,0.14519654]
[1763497567392,3.72365,3142.1,3142.0,0.00329654]
[1763497567589,7.61265,3142.1,3142.0,0.14519654]
[1763497567786,7.61265,3142.1,3142.0,0.00329654]
[1763497567992,0.51593,3141.6,3141.5,0.1419]
[1763497568191,3.72373,3141.6,3141.5,0.1419]
[1763497568898,3.72373,3141.6,3141.5,0.14570642]
[1763497570692,0.51609,3140.6,3140.5,0.65799]
[1763497570891,3.2078,3140.8,3140.6,0.2294]
[1763497571289,0.00476834,3141.9,3140.5,0.1419]
[1763497571290,3.2078,3141.2,3141.1,0.74541]
[1763497571492,3.72375,3141.6,3141.5,0.3713]
[1763497571689,3.21105109,3141.6,3141.5,0.88725]
[1763497572789,3.72698109,3141.6,3141.5,0.3713]
[1763497572989,3.72698109,3141.6,3141.5,0.1419]
[1763497573200,0.516,3141.2,3141.1,0.00302168]
[1763497573392,3.7238,3141.2,3141.1,0.00302168]
[1763497574997,3.2078,3141.2,3141.1,0.74843168]
[1763497576302,3.7238,3141.2,3141.1,0.00302168]
[1763497577393,4.48557416,3141.2,3141.1,0.00302168]
[1763497582292,8.37457416,3141.2,3141.1,0.00302168]
[1763497582898,0.51609,3140.6,3140.5,0.1419]
[1763497583101,4.4863868,3140.6,3140.5,0.1419]
[1763497583495,3.72389,3140.6,3140.5,0.1419]
[1763497583701,3.2078,3140.6,3140.5,0.89841]
[1763497584006,3.72381,3141.1,3141.0,0.3749]
[1763497584296,3.97026409,3141.1,3141.0,0.89093]
[1763497584603,0.51596,3141.4,3141.3,0.51598]
[1763497584797,1.27870271,3141.4,3141.3,0.51598]
[1763497585397,1.27870271,3141.4,3141.3,0.75638]
[1763497585700,0.51601,3141.1,3141.0,0.1345]
[1763497585905,3.2078,3141.5,3141.1,0.516]
[1763497586104,0.75659069,3141.4,3141.1,0.516]
[1763497586301,0.516,3141.2,3141.1,0.516]
[1763497586602,0.51597,3141.4,3141.3,0.75638]
[1763497586789,1.27282007,3141.4,3141.3,0.75638]
[1763497587398,1.27282007,3141.4,3141.3,0.2404]
[1763497587599,0.51601,3141.1,3141.0,0.87632]
[1763497588097,0.516,3141.2,3141.1,0.516]
[1763497588300,0.51598,3141.3,3141.2,0.74178]
[1763497588505,1.27396066,3141.3,3141.2,0.74178]
[1763497592105,0.75798066,3141.3,3141.2,0.74178]
[1763497592301,0.00325109,3141.6,3141.5,0.87865]
[1763497593306,3.2078,3142.9,3142.8,0.74153]
[1763497594002,3.2078,3143.3,3143.2,0.51566]
[1763497594200,3.7266745,3143.3,3143.2,0.00288899]
[1763497594401,3.2110245,3143.3,3143.2,0.51855899]
[1763497594600,3.2110245,3143.3,3143.2,0.74435899]
[1763497594905,3.7266745,3143.3,3143.2,0.51855899]
[1763497595102,3.2110245,3143.3,3143.2,0.74435899]
[1763497595908,0.0032245,3143.3,3143.2,0.74435899]
[1763497596108,0.00477623,3143.6,3143.5,0.87832]
[1763497597210,0.00799004,3143.6,3143.5,0.87832]
[1763497598298,0.00799004,3143.6,3143.5,0.1369]
[1763497598503,0.00799004,3143.6,3143.5,0.65252]
[1763497598703,0.00799004,3143.6,3143.5,0.87832]
[1763497599309,0.52359004,3143.6,3143.5,0.3627]
[1763497599507,0.52359004,3143.6,3143.5,0.1369]
[1763497599804,0.00799004,3143.6,3143.5,0.87832]
[1763497600407,0.52359004,3143.6,3143.5,0.87832]
[1763497600706,0.00799004,3143.6,3143.5,0.87832]
[1763497601805,3.7233,3144.2,3144.1,0.74132]
[1763497602404,3.2078,3144.2,3144.1,0.74132]
[1763497602616,0.51542,3144.8,3144.7,0.2258]
[1763497602910,0.51542,3144.7,3144.6,0.51544]
[1763497603106,0.00290438,3144.8,3144.7,0.2258]
[1763497603308,0.2422,3144.7,3144.6,0.51544]
[1763497603606,0.75762,3144.7,3144.6,0.51544]
[1763497603911,0.00290438,3144.8,3144.5,0.1369]
[1763497603912,0.00290438,3144.8,3144.7,0.2258]
[1763497604107,0.00290438,3144.8,3144.7,0.74122]
[1763497604518,0.51830438,3144.8,3144.7,0.74122]
[1763497605011,0.51830438,3144.8,3144.7,0.2258]
[1763497605614,0.51544,3144.6,3144.5,0.87815]
[1763497606723,0.75765,3144.5,3144.4,0.00477623]
[1763497609912,0.75778,3143.7,3143.6,3.72339]
[1763497610112,0.75778,3143.7,3143.6,3.94919]
[1763497610421,0.75778,3143.7,3143.6,0.2258]
[1763497610611,0.5156,3143.6,3143.5,0.65252]
[1763497611119,0.5156,3143.6,3143.5,0.87832]
[1763497611715,0.51558,3143.8,3143.5,0.1369]
[1763497611914,0.51558,3143.8,3143.7,0.2258]
[1763497612714,0.51556,3143.9,3143.8,0.74135]
[1763497614524,0.51556,3143.9,3143.8,0.2258]
[1763497615617,0.51558,3143.7,3143.6,3.4336]
[1763497616318,0.75774,3144.0,3143.9,0.2258]
[1763497616523,0.75775,3143.9,3143.8,0.51556]
[1763497617625,0.51557,3143.8,3143.7,0.51556]
[1763497617828,0.51557,3143.8,3143.7,0.75436]
[1763497618022,0.51557,3143.9,3143.8,0.75434]
[1763497618424,0.73877,3143.9,3143.8,0.75434]
[1763497618824,0.51557,3143.9,3143.8,0.75434]
[1763497619327,0.73877,3143.9,3143.8,0.51554]
[1763497619723,0.73877,3143.9,3143.8,0.75434]
[1763497620233,0.73877,3143.9,3143.8,0.2388]
[1763497620732,0.73883,3143.4,3143.3,0.51564]
[1763497620918,0.73885,3143.3,3143.2,0.00766522]
[1763497622823,1.49607668,3143.3,3143.2,0.00766522]
[1763497624129,1.49607668,3143.3,3142.3,3.2078]
[1763497624130,0.739,3142.4,3142.3,3.2078]
[1763497624435,0.73904,3142.2,3142.1,0.75463]
[1763497625329,0.2232,3142.4,3142.3,0.75461]
[1763497625524,0.22584176,3142.4,3142.3,0.51825196]
[1763497626328,0.74164176,3142.4,3142.3,0.00244196]
[1763497626529,0.00264176,3142.4,3142.3,3.96485196]
[1763497626721,3.2078,3143.3,3143.1,0.51567]
[1763497626942,3.2078,3143.7,3143.3,0.51564]
[1763497627235,0.2232,3143.6,3143.4,0.51563]
[1763497627444,0.73883,3143.4,3143.3,3.2078]
[1763497627747,0.73883,3143.4,3143.3,3.72345]
[1763497627748,0.74155874,3143.4,3143.3,3.72345]
[1763497628348,0.74155874,3143.4,3143.3,3.96225]
[1763497628544,0.74155874,3143.4,3143.3,3.4466]
[1763497628746,0.74155874,3143.4,3143.3,3.2078]
[1763497628949,0.74155874,3143.4,3143.3,3.4466]
[1763497629544,0.00272874,3143.4,3143.3,3.96225]
[1763497629746,0.51835874,3143.4,3143.3,3.4466]
[1763497630647,0.00272874,3143.4,3143.3,3.96225]
[1763497630850,0.51563,3143.4,3143.3,3.4466]
[1763497631852,0.5185764,3143.4,3143.3,3.4466]
[1763497632149,0.5185764,3143.4,3143.3,3.96225]
[1763497632851,0.5185764,3143.4,3143.3,0.75445]
[1763497633348,0.5185764,3143.4,3143.3,0.2388]
[1763497633555,0.5185764,3143.4,3143.0,3.35577623]
[1763497633556,0.51568,3143.1,3143.0,3.59457623]
[1763497634259,0.73888,3143.1,3143.0,3.59457623]
[1763497634550,0.51568,3143.1,3143.0,4.11027623]
[1763497635048,0.51567,3143.2,3143.1,0.75445]
[1763497635249,0.51565,3143.3,3143.2,0.51565]
[1763497635451,0.51565,3143.3,3143.2,0.75445]
[1763497636249,0.51565,3143.3,3143.2,0.2388]
[1763497636449,0.0029464,3143.4,3143.1,0.2388]
[1763497636450,0.51568,3143.2,3143.1,0.2388]
[1763497637752,0.5185864,3143.4,3143.3,0.2388]
[1763497638548,0.7417864,3143.4,3143.3,0.51565]
[1763497638851,0.7417864,3143.4,3143.3,0.2388]
[1763497639556,0.7417864,3143.4,3143.3,0.75445]
[1763497640051,0.7417864,3143.4,3143.3,0.2388]
[1763497640247,0.7417864,3143.4,3143.3,0.75445]
[1763497640753,0.5185864,3143.4,3143.3,0.75445]
[1763497640955,0.51564,3143.4,3143.3,0.75445]
[1763497641349,0.75674,3143.4,3143.3,0.75445]
[1763497641550,0.75674,3143.4,3143.3,0.2388]
[1763497641754,3.889,3143.6,3143.2,0.51566]
[1763497641755,0.75678,3143.3,3143.2,0.51566]
[1763497641944,0.76004754,3143.3,3143.2,0.76216]
[1763497642351,0.51894754,3143.3,3143.2,0.76216]
[1763497643958,0.00326754,3143.3,3143.2,0.76216]
[1763497644151,0.51891754,3143.3,3143.2,0.76216]
[1763497644553,0.00326754,3143.3,3143.2,0.76216]
[1763497645046,0.51891754,3143.3,3143.2,0.76216]
[1763497645251,0.00326754,3143.3,3143.2,0.76216]
[1763497646063,0.51891754,3143.3,3143.2,0.76216]
[1763497646256,0.76001754,3143.3,3143.2,0.76216]
[1763497646958,0.51891754,3143.3,3143.2,0.76216]
[1763497648256,0.51891754,3143.3,3143.2,0.2465]
[1763497648257,0.76001754,3143.3,3143.2,0.2465]
[1763497649349,0.76001754,3143.3,3143.1,3.2078]
[1763497649350,0.76001754,3143.3,3143.0,0.14797623]
[1763497649548,0.2244,3143.1,3143.0,0.14797623]
[1763497650263,0.2244,3143.1,3143.0,0.37677623]
[1763497650656,0.51568,3143.1,3143.0,0.89244623]
[1763497650854,0.74008,3143.1,3143.0,0.89244623]
[1763497651457,0.74008,3143.1,3143.0,0.52044623]
[1763497651766,0.74008,3143.1,3143.0,0.89304623]
[1763497651957,0.51568,3143.1,3143.0,0.89304623]
[1763497653662,0.74008,3143.1,3143.0,0.89304623]
[1763497654156,0.74008,3143.1,3143.0,0.00477623]
[1763497654664,0.74008,3143.1,3143.0,0.52047623]
[1763497654958,0.00326754,3143.3,3143.0,0.52047623]
[1763497654959,0.00326754,3143.3,3143.2,0.51567]
[1763497655155,0.51891754,3143.3,3143.2,0.74447]
[1763497655357,0.00326754,3143.3,3143.2,0.74447]
[1763497656357,0.51891754,3143.3,3143.2,0.74447]
[1763497656560,0.2244,3143.6,3143.5,0.3726]
[1763497656965,1.50006399,3143.6,3143.5,0.88822]
[1763497657264,1.50006399,3143.6,3143.5,0.3726]
[1763497657464,1.50296525,3143.6,3143.5,0.3726]
[1763497657964,0.74002,3143.5,3143.4,0.51563]
[1763497658162,1.50008399,3143.5,3143.4,0.51563]
[1763497658962,0.51566,3143.3,3143.2,0.74446]
[1763497659163,0.74006,3143.3,3143.2,0.74446]
[1763497659465,0.76006399,3143.3,3143.2,0.74446]
[1763497660064,0.51562,3143.5,3143.4,0.2288]
[1763497660264,1.2759553,3143.5,3143.4,0.2288]
[1763497660659,0.7603353,3143.5,3143.4,0.74443]
[1763497660859,0.51562,3143.5,3143.4,0.74443]
[1763497661060,1.2759553,3143.5,3143.4,0.74443]
[1763497661261,1.2759475,3143.5,3143.4,0.74443]
[1763497662764,0.51565,3143.3,3143.1,3.4366]
[1763497662971,0.22730126,3143.6,3143.5,0.3726]
[1763497663170,0.00290126,3143.6,3143.5,0.88822]
[1763497663470,1.27886049,3143.6,3143.5,0.88822]
[1763497664373,0.76326049,3143.6,3143.5,0.88822]
[1763497664571,0.00290126,3143.6,3143.5,0.88822]
[1763497664766,0.00290126,3143.6,3143.5,4.09602]
[1763497664971,3.94764,3144.6,3144.5,0.3726]
[1763497665266,0.73989,3144.3,3144.2,0.5155]
[1763497665472,0.2244,3144.3,3144.2,0.7443]
[1763497665770,0.51546,3144.5,3144.4,0.2288]
[1763497665969,1.50362549,3144.5,3144.4,0.2288]
[1763497666167,0.2244,3144.1,3144.0,3.2078]
[1763497666368,0.74,3143.6,3143.5,3.5804]
[1763497666675,0.74004,3143.5,3143.4,0.51563]
[1763497667067,0.74004,3143.5,3143.4,0.74443]
[1763497667981,0.74007,3143.2,3143.1,0.2288]
[1763497668169,0.51567,3143.2,3143.1,0.51568]
[1763497668369,0.74007,3143.2,3143.1,0.51568]
[1763497668574,0.2244,3143.2,3143.1,0.74448]
[1763497669874,0.74007,3143.2,3143.1,0.74448]
[1763497672782,0.2244,3143.4,3143.3,0.74445]